fUSD/lending_fUSD_20250511
["ID","MTS","AMOUNT","RATE_DAILY","PERIOD"]
[360714477,1746948641554,-400.0,0.00019808,2]
[360714478,1746948641564,-400.0,0.00019808,2]
[360714479,1746948641573,-400.0,0.00019808,2]
[360714480,1746948641582,-400.0,0.00019808,2]
[360714481,1746948641591,-400.0,0.00019808,2]
[360714482,1746948641600,-400.0,0.00019808,2]
[360714483,1746948641610,-400.0,0.00019808,2]
[360714484,1746948641620,-400.0,0.00019808,2]
[360714485,1746948641630,-400.0,0.00019808,2]
[360714486,1746948641641,-400.0,0.00019808,2]
[360714487,1746948641651,-527.19,0.00019808,2]
[360714488,1746948641661,-400.0,0.00019808,2]
[360714489,1746948641670,-400.0,0.00019808,2]
[360714490,1746948641679,-400.0,0.00019808,2]
[360714491,1746948641688,-400.0,0.00019808,2]
[360714492,1746948641697,-400.0,0.00019808,2]
[360714493,1746948641706,-521.64,0.00019808,2]
[360714494,1746948641716,-400.0,0.00019808,2]
[360714495,1746948641725,-400.0,0.00019808,2]
[360714496,1746948641734,-400.0,0.00019808,2]
[360714497,1746948641743,-400.0,0.00019808,2]
[360714498,1746948641753,-400.0,0.00019808,2]
[360714499,1746948641762,-400.0,0.00019808,2]
[360714500,1746948641772,-400.0,0.00019808,2]
[360714501,1746948641783,-400.0,0.00019808,2]
[360714502,1746948641792,-400.0,0.00019808,2]
[360714503,1746948641801,-400.0,0.00019808,2]
[360714504,1746948641814,-267.61,0.00019808,2]
[360714505,1746948641824,-400.0,0.00019808,2]
[360714506,1746948641833,-400.0,0.00019808,2]
[360714507,1746948641842,-400.0,0.00019808,2]
[360714508,1746948641851,-400.0,0.00019808,2]
[360714509,1746948641862,-400.0,0.00019808,2]
[360714510,1746948641870,-400.0,0.00019808,2]
[360714511,1746948641879,-400.0,0.00019808,2]
[360714512,1746948641891,-400.0,0.00019808,2]
[360714513,1746948641902,-400.0,0.00019808,2]
[360714514,1746948641911,-400.0,0.00019808,2]
[360714515,1746948641921,-400.0,0.00019808,2]
[360714516,1746948641930,-959.15292367,0.00019809,2]
[360714517,1746948641939,-400.0,0.00019809,2]
[360714518,1746948641949,-400.0,0.00019809,2]
[360714519,1746948641959,-400.0,0.00019809,2]
[360714520,1746948641968,-400.0,0.00019809,2]
[360714521,1746948641978,-400.0,0.00019809,2]
[360714522,1746948641987,-400.0,0.00019809,2]
[360714523,1746948641996,-500.0,0.00019809,2]
[360714524,1746948642006,-400.0,0.00019809,2]
[360714525,1746948642016,-400.0,0.00019809,2]
[360714526,1746948642026,-400.0,0.00019809,2]
[360714527,1746948642036,-537.48,0.00019809,2]
[360714528,1746948642046,-1022.85,0.00019809,2]
[360714529,1746948642056,-4969.29542906,0.00019815,2]
[360714530,1746948642066,-4969.29542906,0.00019836,2]
[360714531,1746948642075,-200.0,0.00019839,2]
[360714532,1746948642084,-400.0,0.00019857,2]
[360714533,1746948642093,-4969.29542906,0.00019858,2]
[360714534,1746948642103,-1182.244,0.00019858,2]
[360714535,1746948642112,-1303.0,0.00019858,2]
[360714536,1746948642121,-850.256,0.00019858,2]
[360714537,1746948642131,-1738.231,0.00019892,2]
[360714538,1746948642140,-163.496,0.00019892,2]
[360714539,1746948642150,-162.95135889,0.00019896,2]
[360714540,1746948642159,-153.2280204,0.00019899,2]
[360714541,1746948642168,-2714.4,0.000199,2]
[360714542,1746948642177,-7087.8926541,0.000199,2]
[360714543,1746948642187,-2062.06622395,0.000199,2]
[360714544,1746948642198,-842.65896209,0.000199,2]
[360714545,1746948642209,-959.15292367,0.000199,2]
[360714546,1746948642221,-162.95135888,0.000199,2]
[360714547,1746948642231,-1569.87998167,0.000199,2]
[360714548,1746948642242,-2673.22702044,0.000199,2]
[360714549,1746948642251,-41331.85721499,0.0001995,2]
[360714550,1746948642261,-501.0925657,0.00019973,2]
[360714551,1746948642270,-500.0,0.00019973,2]
[360714552,1746948642279,-505.40962677,0.00019973,2]
[360714553,1746948642288,-500.0,0.00019973,2]
[360714554,1746948642297,-500.90778499,0.00019973,2]
[360714555,1746948642307,-500.0,0.00019973,2]
[360714556,1746948642316,-500.0,0.00019973,2]
[360714557,1746948642325,-500.0,0.00019973,2]
[360714558,1746948642335,-501.77239095,0.00019973,2]
[360714559,1746948642344,-500.0,0.00019973,2]
[360714560,1746948642354,-429.48,0.00019989,2]
[360714561,1746948642363,-400.0,0.00019989,2]
[360714562,1746948642372,-400.0,0.00019989,2]
[360714563,1746948642382,-400.0,0.00019989,2]
[360714564,1746948642391,-400.0,0.00019989,2]
[360714565,1746948642400,-462.78,0.00019989,2]
[360714566,1746948642410,-400.0,0.00019989,2]
[360714567,1746948642419,-400.0,0.00019989,2]
[360714568,1746948642428,-400.0,0.00019989,2]
[360714569,1746948642438,-400.0,0.00019989,2]
[360714570,1746948642447,-400.0,0.00019989,2]
[360714571,1746948642457,-400.0,0.00019989,2]
[360714572,1746948642467,-400.0,0.00019989,2]
[360714573,1746948642476,-517.3,0.00019989,2]
[360714574,1746948642485,-400.0,0.0001999,2]
[360714575,1746948642495,-400.0,0.0001999,2]
[360714576,1746948642504,-391.46,0.0001999,2]
[360714577,1746948642514,-400.0,0.0001999,2]
[360714578,1746948642523,-400.0,0.0001999,2]
[360714579,1746948642532,-400.0,0.0001999,2]
[360714580,1746948642542,-400.0,0.0001999,2]
[360714581,1746948642551,-400.0,0.0001999,2]
[360714582,1746948642560,-537.48,0.0001999,2]
[360714583,1746948642569,-1022.85,0.0001999,2]
[360714584,1746948642579,-171.1231244,0.0001999,2]
[360714585,1746948642589,-8518.22166006,0.00019995,2]
[360714586,1746948642599,-500.0,0.00019996,2]
[360714587,1746948642608,-500.0,0.00019996,2]
[360714588,1746948642618,-500.0,0.00019996,2]
[360714589,1746948642627,-500.0,0.00019996,2]
[360714590,1746948642637,-500.0,0.00019996,2]
[360714591,1746948642647,-400.0,0.00019997,2]
[360714592,1746948642657,-400.0,0.00019997,2]
[360714593,1746948642666,-403.11,0.00019997,2]
[360714594,1746948642675,-462.72,0.00019997,2]
[360714595,1746948642685,-400.0,0.00019997,2]
[360714596,1746948642694,-524.73,0.00019997,2]
[360714598,1746948642703,-400.0,0.00019997,2]
[360714599,1746948642712,-400.0,0.00019997,2]
[360714600,1746948642722,-400.0,0.00019997,2]
[360714601,1746948642731,-496.01,0.00019997,2]
[360714602,1746948642740,-200.12799459,0.00019997,2]
[360714603,1746948642749,-425.86,0.00019997,2]
[360714604,1746948642758,-400.0,0.00019997,2]
[360714605,1746948642768,-400.0,0.00019997,2]
[360714606,1746948642777,-400.0,0.00019997,2]
[360714607,1746948642787,-400.0,0.00019997,2]
[360714608,1746948642796,-400.0,0.00019997,2]
[360714609,1746948642806,-400.0,0.00019997,2]
[360714610,1746948642819,-400.0,0.00019997,2]
[360714612,1746948642828,-289.13,0.00019997,2]
[360714614,1746948642837,-400.0,0.00019997,2]
[360714616,1746948642847,-400.0,0.00019997,2]
[360714618,1746948642857,-400.0,0.00019997,2]
[360714619,1746948642866,-400.0,0.00019997,2]
[360714620,1746948642875,-400.0,0.00019997,2]
[360714621,1746948642885,-400.0,0.00019997,2]
[360714622,1746948642895,-400.0,0.00019997,2]
[360714623,1746948642906,-400.0,0.00019997,2]
[360714624,1746948642915,-400.0,0.00019997,2]
[360714625,1746948642924,-400.0,0.00019997,2]
[360714626,1746948642934,-400.0,0.00019997,2]
[360714627,1746948642944,-400.0,0.00019997,2]
[360714628,1746948642953,-400.0,0.00019997,2]
[360714629,1746948642962,-531.36511433,0.00019997,2]
[360714630,1746948642971,-400.0,0.00019997,2]
[360714631,1746948642980,-400.0,0.00019997,2]
[360714632,1746948642989,-400.0,0.00019997,2]
[360714633,1746948642999,-400.0,0.00019997,2]
[360714634,1746948643008,-400.0,0.00019997,2]
[360714635,1746948643017,-567.38,0.00019997,2]
[360714636,1746948643025,-400.0,0.00019997,2]
[360714637,1746948643035,-400.0,0.00019997,2]
[360714638,1746948643044,-183.45,0.00019997,2]
[360714639,1746948643054,-401.79,0.00019997,2]
[360714640,1746948643064,-7402.49,0.00019997,2]
[360714641,1746948643073,-400.0,0.00019997,2]
[360714642,1746948643082,-400.0,0.00019997,2]
[360714643,1746948643091,-291.41,0.00019997,2]
[360714644,1746948643100,-400.0,0.00019997,2]
[360714645,1746948643108,-202.21,0.00019997,2]
[360714646,1746948643118,-400.0,0.00019997,2]
[360714647,1746948643127,-400.0,0.00019997,2]
[360714648,1746948643136,-400.0,0.00019997,2]
[360714649,1746948643145,-384.45744614,0.00019998,2]
[360714650,1746948643157,-413.01683892,0.00019998,2]
[360714651,1746948643166,-450.0,0.00019998,2]
[360714652,1746948643175,-400.0,0.00019998,2]
[360714653,1746948643184,-400.0,0.00019998,2]
[360714654,1746948643193,-400.0,0.00019998,2]
[360714655,1746948643203,-400.0,0.00019998,2]
[360714656,1746948643212,-400.0,0.00019998,2]
[360714657,1746948643221,-510.94800496,0.00019998,2]
[360714658,1746948643230,-400.0,0.00019998,2]
[360714659,1746948643239,-400.0,0.00019998,2]
[360714660,1746948643248,-400.0,0.00019998,2]
[360714661,1746948643257,-400.0,0.00019998,2]
[360714662,1746948643267,-400.0,0.00019998,2]
[360714663,1746948643276,-222.77355326,0.00019998,2]
[360714664,1746948643285,-353.19804561,0.00019998,2]
[360714665,1746948643295,-533.25591022,0.00019998,2]
[360714666,1746948643305,-400.0,0.00019998,2]
[360714667,1746948643474,-400.0,0.00019998,2]
[360714668,1746948643484,-400.0,0.00019998,2]
[360714669,1746948643493,-400.0,0.00019998,2]
[360714670,1746948643502,-245.89646669,0.00019998,2]
[360714671,1746948643512,-400.0,0.00019998,2]
[360714672,1746948643522,-400.0,0.00019998,2]
[360714673,1746948643532,-290.08,0.00019998,2]
[360714674,1746948643541,-371.3,0.00019998,2]
[360714675,1746948643551,-400.0,0.00019998,2]
[360714676,1746948643560,-400.0,0.00019998,2]
[360714677,1746948643570,-400.0,0.00019998,2]
[360714678,1746948643580,-400.0,0.00019998,2]
[360714679,1746948643589,-400.0,0.00019998,2]
[360714680,1746948643599,-400.0,0.00019998,2]
[360714681,1746948643609,-400.0,0.00019998,2]
[360714682,1746948643619,-400.0,0.00019998,2]
[360714683,1746948643629,-400.0,0.00019998,2]
[360714684,1746948643638,-400.0,0.00019998,2]
[360714685,1746948643650,-400.0,0.00019998,2]
[360714686,1746948643663,-400.0,0.00019998,2]
[360714687,1746948643673,-400.0,0.00019998,2]
[360714688,1746948643684,-400.0,0.00019998,2]
[360714689,1746948643695,-537.48,0.00019998,2]
[360714690,1746948643706,-537.48,0.00019998,2]
[360714691,1746948643716,-400.0,0.00019998,2]
[360714692,1746948643727,-291.56587219,0.00019998,2]
[360714693,1746948643738,-413.54489279,0.00019998,2]
[360714694,1746948643748,-400.0,0.00019998,2]
[360714695,1746948643758,-1022.85,0.00019998,2]
[360714696,1746948643768,-1022.85,0.00019998,2]
[360714697,1746948643779,-400.0,0.00019998,2]
[360714698,1746948643789,-402.58120063,0.00019998,2]
[360714699,1746948643800,-400.0,0.00019998,2]
[360714700,1746948643812,-400.0,0.00019998,2]
[360714701,1746948643822,-400.0,0.00019998,2]
[360714702,1746948643832,-400.0,0.00019998,2]
[360714703,1746948643842,-437.67788653,0.00019998,2]
[360714704,1746948643854,-383.18593792,0.00019998,2]
[360714705,1746948643863,-154.52,0.00019998,2]
[360714706,1746948643873,-400.0,0.00019998,2]
[360714707,1746948643883,-400.0,0.00019998,2]
[360714708,1746948643893,-365.22379584,0.00019998,2]
[360714709,1746948643908,-400.0,0.00019998,2]
[360714710,1746948643918,-406.96038793,0.00019998,2]
[360714711,1746948643927,-335.34243666,0.00019998,2]
[360714712,1746948643937,-416.2925429,0.00019998,2]
[360714713,1746948643947,-400.0,0.00019998,2]
[360714714,1746948643956,-400.0,0.00019998,2]
[360714715,1746948643966,-250.23494475,0.00019998,2]
[360714716,1746948643976,-400.0,0.00019998,2]
[360714717,1746948643986,-400.0,0.00019998,2]
[360714718,1746948643995,-400.0,0.00019998,2]
[360714719,1746948644004,-400.0,0.00019998,2]
[360714720,1746948644014,-400.0,0.00019998,2]
[360714721,1746948644023,-400.0,0.00019998,2]
[360714722,1746948644033,-400.0,0.00019998,2]
[360714723,1746948644043,-400.0,0.00019998,2]
[360714724,1746948644052,-450.0,0.00019998,2]
[360714725,1746948644062,-407.36797304,0.00019998,2]
[360714726,1746948644071,-400.0,0.00019998,2]
[360714727,1746948644082,-400.0,0.00019998,2]
[360714728,1746948644091,-408.39785391,0.00019998,2]
[360714729,1746948644101,-400.0,0.00019998,2]
[360714730,1746948644110,-410.82998794,0.00019998,2]
[360714731,1746948644120,-400.0,0.00019998,2]
[360714732,1746948644130,-535.07633644,0.00019998,2]
[360714733,1746948644139,-415.03170717,0.00019998,2]
[360714734,1746948644151,-400.0,0.00019998,2]
[360714735,1746948644161,-400.0,0.00019998,2]
[360714736,1746948644171,-286.44,0.00019998,2]
[360714737,1746948644180,-400.0,0.00019998,2]
[360714738,1746948644189,-400.0,0.00019998,2]
[360714739,1746948644199,-199.23144612,0.00019998,2]
[360714740,1746948644209,-400.0,0.00019998,2]
[360714741,1746948644218,-400.0,0.00019998,2]
[360714742,1746948644229,-400.0,0.00019998,2]
[360714743,1746948644239,-308.34,0.00019998,2]
[360714744,1746948644250,-400.0,0.00019998,2]
[360714745,1746948644260,-400.0,0.00019998,2]
[360714746,1746948644270,-312.4,0.00019998,2]
[360714747,1746948644279,-400.0,0.00019998,2]
[360714748,1746948644290,-400.0,0.00019998,2]
[360714749,1746948644300,-400.0,0.00019998,2]
[360714750,1746948644310,-400.0,0.00019998,2]
[360714751,1746948644320,-296.77726283,0.00019998,2]
[360714752,1746948644329,-400.0,0.00019998,2]
[360714753,1746948644339,-400.0,0.00019998,2]
[360714754,1746948644348,-205.33,0.00019998,2]
[360714755,1746948644358,-400.0,0.00019998,2]
[360714756,1746948644368,-400.0,0.00019998,2]
[360714757,1746948644378,-400.0,0.00019998,2]
[360714758,1746948644387,-400.0,0.00019998,2]
[360714759,1746948644398,-400.0,0.00019998,2]
[360714760,1746948644409,-272.73,0.00019998,2]
[360714761,1746948644419,-402.51141363,0.00019998,2]
[360714762,1746948644428,-400.0,0.00019998,2]
[360714763,1746948644438,-400.0,0.00019998,2]
[360714764,1746948644448,-447.9,0.00019998,2]
[360714765,1746948644458,-400.0,0.00019998,2]
[360714766,1746948644468,-400.0,0.00019998,2]
[360714767,1746948644477,-487.38,0.00019998,2]
[360714768,1746948644487,-400.0,0.00019998,2]
[360714769,1746948644496,-400.0,0.00019998,2]
[360714770,1746948644506,-400.0,0.00019998,2]
[360714771,1746948644515,-400.0,0.00019998,2]
[360714772,1746948644525,-390.21652583,0.00019998,2]
[360714773,1746948644535,-400.0,0.00019998,2]
[360714774,1746948644545,-400.0,0.00019998,2]
[360714775,1746948644554,-163.59,0.00019998,2]
[360714776,1746948644564,-540.81,0.00019998,2]
[360714777,1746948644574,-400.0,0.00019998,2]
[360714778,1746948644584,-400.0,0.00019998,2]
[360714779,1746948644594,-400.0,0.00019998,2]
[360714780,1746948644603,-400.0,0.00019998,2]
[360714781,1746948644613,-288.15323493,0.00019998,2]
[360714782,1746948644623,-400.0,0.00019998,2]
[360714783,1746948644632,-418.48,0.00019998,2]
[360714784,1746948644642,-400.0,0.00019998,2]
[360714785,1746948644654,-400.0,0.00019998,2]
[360714786,1746948644663,-424.0625603,0.00019998,2]
[360714787,1746948644673,-400.0,0.00019998,2]
[360714788,1746948644683,-400.0,0.00019998,2]
[360714789,1746948644692,-400.0,0.00019998,2]
[360714790,1746948644702,-383.71,0.00019998,2]
[360714791,1746948644713,-400.0,0.00019998,2]
[360714792,1746948644722,-400.0,0.00019998,2]
[360714793,1746948644731,-400.0,0.00019998,2]
[360714794,1746948644741,-400.0,0.00019998,2]
[360714795,1746948644750,-404.39055261,0.00019998,2]
[360714796,1746948644760,-400.0,0.00019998,2]
[360714797,1746948644769,-400.0,0.00019998,2]
[360714798,1746948644778,-400.0,0.00019998,2]
[360714799,1746948644788,-400.0,0.00019998,2]
[360714800,1746948644798,-400.0,0.00019998,2]
[360714801,1746948644810,-400.0,0.00019998,2]
[360714802,1746948644822,-153.52,0.00019998,2]
[360714803,1746948644831,-400.0,0.00019998,2]
[360714804,1746948644841,-400.0,0.00019998,2]
[360714805,1746948644850,-400.0,0.00019998,2]
[360714806,1746948644859,-400.0,0.00019998,2]
[360714807,1746948644869,-400.0,0.00019998,2]
[360714808,1746948644878,-400.0,0.00019998,2]
[360714809,1746948644887,-400.0,0.00019998,2]
[360714810,1746948644899,-400.0,0.00019998,2]
[360714811,1746948644909,-400.0,0.00019998,2]
[360714812,1746948644919,-302.88,0.00019998,2]
[360714813,1746948644928,-279.34901057,0.00019998,2]
[360714814,1746948644938,-400.0,0.00019998,2]
[360714815,1746948644947,-400.0,0.00019998,2]
[360714816,1746948644957,-400.0,0.00019998,2]
[360714817,1746948644967,-400.0,0.00019998,2]
[360714818,1746948644976,-400.0,0.00019998,2]
[360714819,1746948644986,-400.0,0.00019998,2]
[360714820,1746948644995,-161.02,0.00019998,2]
[360714821,1746948645004,-400.0,0.00019998,2]
[360714822,1746948645014,-308.0,0.00019998,2]
[360714823,1746948645023,-400.0,0.00019998,2]
[360714824,1746948645033,-400.0,0.00019998,2]
[360714825,1746948645042,-511.13,0.00019998,2]
[360714826,1746948645052,-400.0,0.00019998,2]
[360714827,1746948645061,-400.0,0.00019998,2]
[360714828,1746948645071,-400.0,0.00019998,2]
[360714829,1746948645080,-400.0,0.00019998,2]
[360714830,1746948645090,-400.0,0.00019998,2]
[360714831,1746948645099,-472.64,0.00019998,2]
[360714832,1746948645109,-400.0,0.00019998,2]
[360714833,1746948645118,-400.0,0.00019998,2]
[360714834,1746948645128,-333.12,0.00019998,2]
[360714835,1746948645137,-2713.72,0.00019998,2]
[360714836,1746948645146,-2713.72,0.00019998,2]
[360714837,1746948645157,-400.0,0.00019998,2]
[360714838,1746948645167,-339.15,0.00019998,2]
[360714839,1746948645176,-400.0,0.00019998,2]
[360714840,1746948645185,-358.65,0.00019998,2]
[360714841,1746948645194,-400.0,0.00019998,2]
[360714842,1746948645204,-400.0,0.00019998,2]
[360714843,1746948645213,-400.0,0.00019998,2]
[360714844,1746948645222,-400.0,0.00019998,2]
[360714845,1746948645231,-400.0,0.00019998,2]
[360714846,1746948645240,-400.0,0.00019998,2]
[360714847,1746948645250,-400.0,0.00019998,2]
[360714848,1746948645259,-288.28,0.00019998,2]
[360714849,1746948645268,-454.43,0.00019998,2]
[360714850,1746948645278,-421.74,0.00019998,2]
[360714851,1746948645288,-400.0,0.00019998,2]
[360714852,1746948645298,-400.0,0.00019998,2]
[360714853,1746948645308,-455.18921685,0.00019998,2]
[360714854,1746948645318,-400.0,0.00019998,2]
[360714855,1746948645327,-325.02,0.00019998,2]
[360714856,1746948645336,-400.0,0.00019998,2]
[360714857,1746948645346,-486.77,0.00019998,2]
[360714858,1746948645355,-175.12,0.00019998,2]
[360714859,1746948645365,-366.31,0.00019998,2]
[360714860,1746948645374,-400.0,0.00019998,2]
[360714861,1746948645384,-400.0,0.00019998,2]
[360714862,1746948645394,-400.0,0.00019998,2]
[360714863,1746948645406,-400.0,0.00019998,2]
[360714864,1746948645415,-400.0,0.00019998,2]
[360714865,1746948645425,-291.13,0.00019998,2]
[360714866,1746948645434,-400.0,0.00019998,2]
[360714867,1746948645443,-405.8560354,0.00019998,2]
[360714868,1746948645452,-400.0,0.00019998,2]
[360714869,1746948645462,-400.0,0.00019998,2]
[360714870,1746948645471,-400.0,0.00019998,2]
[360714871,1746948645482,-523.15,0.00019998,2]
[360714872,1746948645491,-400.0,0.00019998,2]
[360714873,1746948645501,-403.8832481,0.00019998,2]
[360714874,1746948645510,-941.23,0.00019998,2]
[360714875,1746948645519,-400.0,0.00019998,2]
[360714876,1746948645529,-941.23,0.00019998,2]
[360714877,1746948645539,-400.0,0.00019998,2]
[360714878,1746948645548,-400.0,0.00019998,2]
[360714879,1746948645557,-336.19,0.00019998,2]
[360714880,1746948645567,-400.0,0.00019998,2]
[360714881,1746948645576,-400.0,0.00019998,2]
[360714882,1746948645586,-227.88,0.00019998,2]
[360714883,1746948645596,-400.0,0.00019998,2]
[360714884,1746948645606,-400.0,0.00019998,2]
[360714885,1746948645615,-400.0,0.00019998,2]
[360714886,1746948645625,-400.0,0.00019998,2]
[360714887,1746948645634,-400.0,0.00019998,2]
[360714888,1746948645643,-400.0,0.00019998,2]
[360714889,1746948645654,-400.0,0.00019998,2]
[360714890,1746948645664,-372.26064816,0.00019998,2]
[360714891,1746948645674,-1058.19,0.00019998,2]
[360714892,1746948645684,-400.0,0.00019998,2]
[360714893,1746948645694,-1058.19,0.00019998,2]
[360714894,1746948645703,-400.0,0.00019998,2]
[360714895,1746948645712,-462.78,0.00019998,2]
[360714896,1746948645722,-462.78,0.00019998,2]
[360714897,1746948645732,-400.0,0.00019998,2]
[360714898,1746948645741,-251.62,0.00019998,2]
[360714899,1746948645751,-400.0,0.00019998,2]
[360714900,1746948645761,-400.0,0.00019998,2]
[360714901,1746948645770,-400.0,0.00019998,2]
[360714902,1746948645779,-400.0,0.00019998,2]
[360714903,1746948645789,-1155.31,0.00019998,2]
[360714904,1746948645798,-1155.31,0.00019998,2]
[360714905,1746948645808,-400.0,0.00019998,2]
[360714906,1746948645819,-400.0,0.00019998,2]
[360714907,1746948645828,-223.66,0.00019998,2]
[360714908,1746948645838,-400.0,0.00019998,2]
[360714909,1746948645848,-463.42,0.00019998,2]
[360714910,1746948645858,-400.0,0.00019998,2]
[360714911,1746948645914,-400.0,0.00019998,2]
[360714912,1746948645923,-400.0,0.00019998,2]
[360714913,1746948645935,-400.0,0.00019998,2]
[360714914,1746948645947,-435.18264615,0.00019998,2]
[360714915,1746948645957,-354.3892922,0.00019998,2]
[360714916,1746948645966,-400.0,0.00019998,2]
[360714917,1746948645977,-400.0,0.00019998,2]
[360714918,1746948645987,-341.91697599,0.00019998,2]
[360714919,1746948645997,-195.98388323,0.00019998,2]
[360714920,1746948646006,-400.0,0.00019998,2]
[360714921,1746948646016,-400.0,0.00019998,2]
[360714922,1746948646026,-400.0,0.00019998,2]
[360714923,1746948646035,-400.0,0.00019998,2]
[360714924,1746948646044,-400.0,0.00019998,2]
[360714925,1746948646054,-389.06,0.00019998,2]
[360714926,1746948646064,-567.38,0.00019998,2]
[360714927,1746948646073,-567.38,0.00019998,2]
[360714928,1746948646083,-400.0,0.00019998,2]
[360714929,1746948646092,-400.0,0.00019998,2]
[360714931,1746948646101,-400.0,0.00019998,2]
[360714933,1746948646110,-400.0,0.00019998,2]
[360714935,1746948646119,-401.79,0.00019998,2]
[360714937,1746948646128,-401.79,0.00019998,2]
[360714939,1746948646138,-7402.49,0.00019998,2]
[360714941,1746948646147,-400.0,0.00019998,2]
[360714943,1746948646158,-400.0,0.00019998,2]
[360714945,1746948646167,-7402.49,0.00019998,2]
[360714947,1746948646176,-452.76,0.00019998,2]
[360714949,1746948646185,-400.0,0.00019998,2]
[360714951,1746948646195,-199.37,0.00019998,2]
[360714953,1746948646204,-400.0,0.00019998,2]
[360714955,1746948646213,-400.0,0.00019998,2]
[360714957,1746948646223,-400.0,0.00019998,2]
[360714959,1746948646232,-400.0,0.00019998,2]
[360714960,1746948646242,-400.0,0.00019998,2]
[360714961,1746948646252,-400.0,0.00019998,2]
[360714962,1746948646261,-400.0,0.00019998,2]
[360714963,1746948646271,-400.0,0.00019998,2]
[360714964,1746948646280,-400.0,0.00019998,2]
[360714965,1746948646290,-400.0,0.00019998,2]
[360714966,1746948646299,-400.0,0.00019998,2]
[360714967,1746948646308,-400.0,0.00019998,2]
[360714968,1746948646318,-400.0,0.00019998,2]
[360714969,1746948646327,-400.0,0.00019998,2]
[360714970,1746948646337,-400.0,0.00019998,2]
[360714971,1746948646346,-533.32,0.00019998,2]
[360714972,1746948646356,-400.0,0.00019998,2]
[360714973,1746948646365,-253.91,0.00019998,2]
[360714974,1746948646375,-400.0,0.00019998,2]
[360714975,1746948646385,-400.0,0.00019998,2]
[360714976,1746948646395,-400.0,0.00019998,2]
[360714977,1746948646407,-400.0,0.00019998,2]
[360714978,1746948646417,-400.0,0.00019998,2]
[360714979,1746948646426,-400.0,0.00019998,2]
[360714980,1746948646435,-400.0,0.00019998,2]
[360714981,1746948646445,-517.3,0.00019998,2]
[360714982,1746948646454,-517.3,0.00019998,2]
[360714983,1746948646464,-400.0,0.00019998,2]
[360714984,1746948646473,-400.0,0.00019998,2]
[360714985,1746948646483,-400.0,0.00019998,2]
[360714986,1746948646492,-364666.4534723,0.00019999,2]
[360714987,1746948646714,-3232.40547734,0.00019999,2]
[360714988,1746948647057,-303.45247909,0.00019259,2]
[360714989,1746948647082,-96.54752091,0.00019259,2]
[360714990,1746948647091,-400.0,0.00019259,2]
[360714991,1746948647101,-400.0,0.00019808,2]
[360714992,1746948647111,-400.0,0.00019808,2]
[360714993,1746948647120,-879.0,0.00019838,2]
[360714994,1746948647130,-4969.29542906,0.00019879,2]
[360714995,1746948647139,-400.0,0.00019997,2]
[360714996,1746948647153,-400.0,0.00019998,2]